{"text_format":"3","workbook":"xlsx","n_sheets":1,"sheets":["Ατομικός προϋπολογισμός μήνα"],"read":"whole","date_system":"1900"}

{"sheet":"Ατομικός προϋπολογισμός μήνα","index":0,"n_rows":62,"n_cols":10,"rows_kept":62,"merged":[[0,1,0,9],[2,1,4,1],[2,2,2,3],[2,7,2,8],[3,2,3,3],[3,7,3,8],[4,2,4,3],[4,6,4,8],[5,1,7,1],[5,2,5,3],[5,7,5,8],[6,2,6,3],[6,7,6,8],[7,2,7,3],[7,6,7,8],[20,6,20,9],[21,1,21,4],[29,6,29,9],[31,1,31,4],[36,6,36,9],[38,1,38,4],[42,6,42,9],[44,1,44,4],[48,6,48,9],[52,1,52,4],[55,6,55,9]]}
[null,"Προσωπικός μηνιαίος προϋπολογισμός"]
[]
[null,"ΠΡΟΒΛΕΠΟΜΕΝΟ ΜΗΝΑΙΟ ΕΙΣΟΔΗΜΑ","Εισόδημα 1",null,{"v":2500,"d":"2,500 €"},null,"ΣΥΝΟΛΙΚΗ ΠΡΟΒΛΕΠΟΜΕΝΗ ΔΑΠΑΝΗ ","(Προβλεπόμενο εισόδημα μείον έξοδα)",null,{"$f":"SUM(C21,C31,C38,C44,C52,C62,H20,H29,H36,H42,H48,H55)","v":{"v":2060,"d":"2,060 €"}}]
[null,null,"Επιπλέον εισόδημα",null,{"v":500,"d":"500 €"},null,"ΣΥΝΟΛΙΚΑ ΠΡΑΓΜΑΤΙΚΗ ΔΑΠΑΝΗ ","(Πραγματικό εισόδημα μείον έξοδα)",null,{"$f":"SUM(D21,D31,D38,D44,D52,D62,I20,I29,I36,I42,I48,I55)","v":{"v":2040,"d":"2,040 €"}}]
[null,null,"Συνολικό μηνιαίο εισόδημα",null,{"$f":"SUM(E3:E4)","v":{"v":3000,"d":"3,000 €"}},null,"Διαφορά συνόλου εξόδων",null,null,{"$f":"SUM(E21,E31,E38,E44,E52,E62,J20,J29,J36,J42,J48,J55)","v":{"v":20,"d":"20 €"}}]
[null,"ΠΡΑΓΜΑΤΙΚΟ ΜΗΝΑΙΟ ΕΙΣΟΔΗΜΑ","Εισόδημα 1",null,{"v":2500,"d":"2,500 €"},null,"ΠΡΟΒΛΕΠΟΜΕΝΟ ΥΠΟΛΟΙΠΟ","(Προβλεπόμενο εισόδημα μείον έξοδα)",null,{"$f":"E5-J3","v":{"v":940,"d":"940 €"}}]
[null,null,"Επιπλέον εισόδημα",null,{"v":500,"d":"500 €"},null,"ΠΡΑΓΜΑΤΙΚΟ ΥΠΟΛΟΙΠΟ","(Πραγματικό εισόδημα μείον έξοδα)",null,{"$f":"E8-J4","v":{"v":960,"d":"960 €"}}]
[null,null,"Συνολικό μηνιαίο εισόδημα",null,{"$f":"SUM(E6:E7)","v":{"v":3000,"d":"3,000 €"}},null,"ΔΙΑΦΟΡΑ ΥΠΟΛΟΙΠΟΥ (πραγματικά μείον προβλεπόμενα ποσά)",null,null,{"$f":"J7-J6","v":{"v":20,"d":"20 €"}}]
[]
[null,"ΣΤΕΓΑΣΗ","Προβλεπόμενα έξοδα","Πραγματικά έξοδα","Διαφορά",null,"ΔΙΑΣΚΕΔΑΣΗ","Προβλεπόμενα έξοδα","Πραγματικά έξοδα","Διαφορά"]
[null,"Στεγαστικό ή ενοίκιο",{"v":1500,"d":"1,500 €"},{"v":1400,"d":"1,400 €"},{"$f":"Στέγαση[[#This Row],[Προβλεπόμενα έξοδα]]-Στέγαση[[#This Row],[Πραγματικά έξοδα]]","v":{"v":100,"d":"100 €"}},null,"Βίντεο/DVD",{"v":0,"d":"0 €"},{"v":50,"d":"50 €"},{"$f":"Ψυχαγωγία[[#This Row],[Προβλεπόμενα έξοδα]]-Ψυχαγωγία[[#This Row],[Πραγματικά έξοδα]]","v":{"v":-50,"d":"-50 €"}}]
[null,"Τηλέφωνο",{"v":60,"d":"60 €"},{"v":100,"d":"100 €"},{"$f":"Στέγαση[[#This Row],[Προβλεπόμενα έξοδα]]-Στέγαση[[#This Row],[Πραγματικά έξοδα]]","v":{"v":-40,"d":"-40 €"}},null,"CD",null,null,{"$f":"Ψυχαγωγία[[#This Row],[Προβλεπόμενα έξοδα]]-Ψυχαγωγία[[#This Row],[Πραγματικά έξοδα]]","v":{"v":0,"d":"0 €"}}]
[null,"Ηλεκτρικό",{"v":50,"d":"50 €"},{"v":60,"d":"60 €"},{"$f":"Στέγαση[[#This Row],[Προβλεπόμενα έξοδα]]-Στέγαση[[#This Row],[Πραγματικά έξοδα]]","v":{"v":-10,"d":"-10 €"}},null,"Ταινίες",null,null,{"$f":"Ψυχαγωγία[[#This Row],[Προβλεπόμενα έξοδα]]-Ψυχαγωγία[[#This Row],[Πραγματικά έξοδα]]","v":{"v":0,"d":"0 €"}}]
[null,"Αέριο",{"v":200,"d":"200 €"},{"v":180,"d":"180 €"},{"$f":"Στέγαση[[#This Row],[Προβλεπόμενα έξοδα]]-Στέγαση[[#This Row],[Πραγματικά έξοδα]]","v":{"v":20,"d":"20 €"}},null,"Συναυλίες",null,null,{"$f":"Ψυχαγωγία[[#This Row],[Προβλεπόμενα έξοδα]]-Ψυχαγωγία[[#This Row],[Πραγματικά έξοδα]]","v":{"v":0,"d":"0 €"}}]
[null,"Ύδρευση και αποχέτευση",null,null,{"$f":"Στέγαση[[#This Row],[Προβλεπόμενα έξοδα]]-Στέγαση[[#This Row],[Πραγματικά έξοδα]]","v":{"v":0,"d":"0 €"}},null,"Αθλητικές εκδηλώσεις",null,null,{"$f":"Ψυχαγωγία[[#This Row],[Προβλεπόμενα έξοδα]]-Ψυχαγωγία[[#This Row],[Πραγματικά έξοδα]]","v":{"v":0,"d":"0 €"}}]
[null,"Συνδρομητική τηλεόραση",null,null,{"$f":"Στέγαση[[#This Row],[Προβλεπόμενα έξοδα]]-Στέγαση[[#This Row],[Πραγματικά έξοδα]]","v":{"v":0,"d":"0 €"}},null,"Θέατρο",null,null,{"$f":"Ψυχαγωγία[[#This Row],[Προβλεπόμενα έξοδα]]-Ψυχαγωγία[[#This Row],[Πραγματικά έξοδα]]","v":{"v":0,"d":"0 €"}}]
[null,"Αποκομιδή σκουπιδιών",null,null,{"$f":"Στέγαση[[#This Row],[Προβλεπόμενα έξοδα]]-Στέγαση[[#This Row],[Πραγματικά έξοδα]]","v":{"v":0,"d":"0 €"}},null,"Άλλο",null,null,{"$f":"Ψυχαγωγία[[#This Row],[Προβλεπόμενα έξοδα]]-Ψυχαγωγία[[#This Row],[Πραγματικά έξοδα]]","v":{"v":0,"d":"0 €"}}]
[null,"Συντήρηση ή επισκευές",null,null,{"$f":"Στέγαση[[#This Row],[Προβλεπόμενα έξοδα]]-Στέγαση[[#This Row],[Πραγματικά έξοδα]]","v":{"v":0,"d":"0 €"}},null,"Άλλο",null,null,{"$f":"Ψυχαγωγία[[#This Row],[Προβλεπόμενα έξοδα]]-Ψυχαγωγία[[#This Row],[Πραγματικά έξοδα]]","v":{"v":0,"d":"0 €"}}]
[null,"Προμήθειες",null,null,{"$f":"Στέγαση[[#This Row],[Προβλεπόμενα έξοδα]]-Στέγαση[[#This Row],[Πραγματικά έξοδα]]","v":{"v":0,"d":"0 €"}},null,"Άλλο",null,null,{"$f":"Ψυχαγωγία[[#This Row],[Προβλεπόμενα έξοδα]]-Ψυχαγωγία[[#This Row],[Πραγματικά έξοδα]]","v":{"v":0,"d":"0 €"}}]
[null,"Άλλο",null,null,{"$f":"Στέγαση[[#This Row],[Προβλεπόμενα έξοδα]]-Στέγαση[[#This Row],[Πραγματικά έξοδα]]","v":{"v":0,"d":"0 €"}},null,"Άθροισμα",{"$f":"SUBTOTAL(109,Ψυχαγωγία[Προβλεπόμενα έξοδα])","v":{"v":0,"d":"0 €"}},{"$f":"SUBTOTAL(109,Ψυχαγωγία[Πραγματικά έξοδα])","v":{"v":50,"d":"50 €"}},{"$f":"SUBTOTAL(109,Ψυχαγωγία[Διαφορά])","v":{"v":-50,"d":"-50 €"}}]
[null,"Άθροισμα",{"$f":"SUBTOTAL(109,Στέγαση[Προβλεπόμενα έξοδα])","v":{"v":1810,"d":"1,810 €"}},{"$f":"SUBTOTAL(109,Στέγαση[Πραγματικά έξοδα])","v":{"v":1740,"d":"1,740 €"}},{"$f":"SUBTOTAL(109,Στέγαση[Διαφορά])","v":{"v":70,"d":"70 €"}}]
[{"$nulls":6},"ΔΑΝΕΙΑ","Προβλεπόμενα έξοδα","Πραγματικά έξοδα","Διαφορά"]
[null,"ΜΕΤΑΚΙΝΗΣΕΙΣ","Προβλεπόμενα έξοδα","Πραγματικά έξοδα","Διαφορά",null,"Προσωπικό",null,null,{"$f":"Δάνεια[[#This Row],[Προβλεπόμενα έξοδα]]-Δάνεια[[#This Row],[Πραγματικά έξοδα]]","v":{"v":0,"d":"0 €"}}]
[null,"Δόση οχήματος",{"v":250,"d":"250 €"},{"v":250,"d":"250 €"},{"$f":"Μετακινήσεις[[#This Row],[Προβλεπόμενα έξοδα]]-Μετακινήσεις[[#This Row],[Πραγματικά έξοδα]]","v":{"v":0,"d":"0 €"}},null,"Φοιτητικό",null,null,{"$f":"Δάνεια[[#This Row],[Προβλεπόμενα έξοδα]]-Δάνεια[[#This Row],[Πραγματικά έξοδα]]","v":{"v":0,"d":"0 €"}}]
[null,"Ναύλα λεωφορείου/ταξί",null,null,{"$f":"Μετακινήσεις[[#This Row],[Προβλεπόμενα έξοδα]]-Μετακινήσεις[[#This Row],[Πραγματικά έξοδα]]","v":{"v":0,"d":"0 €"}},null,"Πιστωτική κάρτα",null,null,{"$f":"Δάνεια[[#This Row],[Προβλεπόμενα έξοδα]]-Δάνεια[[#This Row],[Πραγματικά έξοδα]]","v":{"v":0,"d":"0 €"}}]
[null,"Ασφάλεια",null,null,{"$f":"Μετακινήσεις[[#This Row],[Προβλεπόμενα έξοδα]]-Μετακινήσεις[[#This Row],[Πραγματικά έξοδα]]","v":{"v":0,"d":"0 €"}},null,"Πιστωτική κάρτα",null,null,{"$f":"Δάνεια[[#This Row],[Προβλεπόμενα έξοδα]]-Δάνεια[[#This Row],[Πραγματικά έξοδα]]","v":{"v":0,"d":"0 €"}}]
[null,"Τέλη κυκλοφορίας",null,null,{"$f":"Μετακινήσεις[[#This Row],[Προβλεπόμενα έξοδα]]-Μετακινήσεις[[#This Row],[Πραγματικά έξοδα]]","v":{"v":0,"d":"0 €"}},null,"Πιστωτική κάρτα",null,null,{"$f":"Δάνεια[[#This Row],[Προβλεπόμενα έξοδα]]-Δάνεια[[#This Row],[Πραγματικά έξοδα]]","v":{"v":0,"d":"0 €"}}]
[null,"Καύσιμα",null,null,{"$f":"Μετακινήσεις[[#This Row],[Προβλεπόμενα έξοδα]]-Μετακινήσεις[[#This Row],[Πραγματικά έξοδα]]","v":{"v":0,"d":"0 €"}},null,"Άλλο",null,null,{"$f":"Δάνεια[[#This Row],[Προβλεπόμενα έξοδα]]-Δάνεια[[#This Row],[Πραγματικά έξοδα]]","v":{"v":0,"d":"0 €"}}]
[null,"Συντήρηση",null,null,{"$f":"Μετακινήσεις[[#This Row],[Προβλεπόμενα έξοδα]]-Μετακινήσεις[[#This Row],[Πραγματικά έξοδα]]","v":{"v":0,"d":"0 €"}},null,"Άθροισμα",{"$f":"SUBTOTAL(109,Δάνεια[Προβλεπόμενα έξοδα])","v":{"v":0,"d":"0 €"}},{"$f":"SUBTOTAL(109,Δάνεια[Πραγματικά έξοδα])","v":{"v":0,"d":"0 €"}},{"$f":"SUBTOTAL(109,Δάνεια[Διαφορά])","v":{"v":0,"d":"0 €"}}]
[null,"Άλλο",null,null,{"$f":"Μετακινήσεις[[#This Row],[Προβλεπόμενα έξοδα]]-Μετακινήσεις[[#This Row],[Πραγματικά έξοδα]]","v":{"v":0,"d":"0 €"}}]
[null,"Άθροισμα",{"$f":"SUBTOTAL(109,Μετακινήσεις[Προβλεπόμενα έξοδα])","v":{"v":250,"d":"250 €"}},{"$f":"SUBTOTAL(109,Μετακινήσεις[Πραγματικά έξοδα])","v":{"v":250,"d":"250 €"}},{"$f":"SUBTOTAL(109,Μετακινήσεις[Διαφορά])","v":{"v":0,"d":"0 €"}},null,"ΦΟΡΟΙ","Προβλεπόμενα έξοδα","Πραγματικά έξοδα","Διαφορά"]
[{"$nulls":6},"Εθνικοί",null,null,{"$f":"Φόροι[[#This Row],[Προβλεπόμενα έξοδα]]-Φόροι[[#This Row],[Πραγματικά έξοδα]]","v":{"v":0,"d":"0 €"}}]
[null,"ΑΣΦΑΛΕΙΑ","Προβλεπόμενα έξοδα","Πραγματικά έξοδα","Διαφορά",null,"Περιφερειακοί",null,null,{"$f":"Φόροι[[#This Row],[Προβλεπόμενα έξοδα]]-Φόροι[[#This Row],[Πραγματικά έξοδα]]","v":{"v":0,"d":"0 €"}}]
[null,"Σπιτιού",null,null,{"$f":"Ασφάλεια[[#This Row],[Προβλεπόμενα έξοδα]]-Ασφάλεια[[#This Row],[Πραγματικά έξοδα]]","v":{"v":0,"d":"0 €"}},null,"Δημοτικοί",null,null,{"$f":"Φόροι[[#This Row],[Προβλεπόμενα έξοδα]]-Φόροι[[#This Row],[Πραγματικά έξοδα]]","v":{"v":0,"d":"0 €"}}]
[null,"Υγείας",null,null,{"$f":"Ασφάλεια[[#This Row],[Προβλεπόμενα έξοδα]]-Ασφάλεια[[#This Row],[Πραγματικά έξοδα]]","v":{"v":0,"d":"0 €"}},null,"Άλλο",null,null,{"$f":"Φόροι[[#This Row],[Προβλεπόμενα έξοδα]]-Φόροι[[#This Row],[Πραγματικά έξοδα]]","v":{"v":0,"d":"0 €"}}]
[null,"Ζωής",null,null,{"$f":"Ασφάλεια[[#This Row],[Προβλεπόμενα έξοδα]]-Ασφάλεια[[#This Row],[Πραγματικά έξοδα]]","v":{"v":0,"d":"0 €"}},null,"Άθροισμα",{"$f":"SUBTOTAL(109,Φόροι[Προβλεπόμενα έξοδα])","v":{"v":0,"d":"0 €"}},{"$f":"SUBTOTAL(109,Φόροι[Πραγματικά έξοδα])","v":{"v":0,"d":"0 €"}},{"$f":"SUBTOTAL(109,Φόροι[Διαφορά])","v":{"v":0,"d":"0 €"}}]
[null,"Άλλο",null,null,{"$f":"Ασφάλεια[[#This Row],[Προβλεπόμενα έξοδα]]-Ασφάλεια[[#This Row],[Πραγματικά έξοδα]]","v":{"v":0,"d":"0 €"}}]
[null,"Άθροισμα",{"$f":"SUBTOTAL(109,Ασφάλεια[Προβλεπόμενα έξοδα])","v":{"v":0,"d":"0 €"}},{"$f":"SUBTOTAL(109,Ασφάλεια[Πραγματικά έξοδα])","v":{"v":0,"d":"0 €"}},{"$f":"SUBTOTAL(109,Ασφάλεια[Διαφορά])","v":{"v":0,"d":"0 €"}},null,"ΑΠΟΤΑΜΙΕΥΣΕΙΣ Ή ΕΠΕΝΔΥΣΕΙΣ","Προβλεπόμενα έξοδα","Πραγματικά έξοδα","Διαφορά"]
[{"$nulls":6},"Λογαριασμός συνταξιοδότησης",null,null,{"$f":"ΑποταμιεύσειςΚαιΕπενδύσεις[[#This Row],[Προβλεπόμενα έξοδα]]-ΑποταμιεύσειςΚαιΕπενδύσεις[[#This Row],[Πραγματικά έξοδα]]","v":{"v":0,"d":"0 €"}}]
[null,"ΦΑΓΗΤΟ","Προβλεπόμενα έξοδα","Πραγματικά έξοδα","Διαφορά",null,"Επενδυτικός λογαριασμός",null,null,{"$f":"ΑποταμιεύσειςΚαιΕπενδύσεις[[#This Row],[Προβλεπόμενα έξοδα]]-ΑποταμιεύσειςΚαιΕπενδύσεις[[#This Row],[Πραγματικά έξοδα]]","v":{"v":0,"d":"0 €"}}]
[null,"Ψώνια",null,null,{"$f":"Φαγητό[[#This Row],[Προβλεπόμενα έξοδα]]-Φαγητό[[#This Row],[Πραγματικά έξοδα]]","v":{"v":0,"d":"0 €"}},null,"Άλλο",null,null,{"$f":"ΑποταμιεύσειςΚαιΕπενδύσεις[[#This Row],[Προβλεπόμενα έξοδα]]-ΑποταμιεύσειςΚαιΕπενδύσεις[[#This Row],[Πραγματικά έξοδα]]","v":{"v":0,"d":"0 €"}}]
[null,"Εστιατόρια",null,null,{"$f":"Φαγητό[[#This Row],[Προβλεπόμενα έξοδα]]-Φαγητό[[#This Row],[Πραγματικά έξοδα]]","v":{"v":0,"d":"0 €"}},null,"Άθροισμα",{"$f":"SUBTOTAL(109,ΑποταμιεύσειςΚαιΕπενδύσεις[Προβλεπόμενα έξοδα])","v":{"v":0,"d":"0 €"}},{"$f":"SUBTOTAL(109,ΑποταμιεύσειςΚαιΕπενδύσεις[Πραγματικά έξοδα])","v":{"v":0,"d":"0 €"}},{"$f":"SUBTOTAL(109,ΑποταμιεύσειςΚαιΕπενδύσεις[Διαφορά])","v":{"v":0,"d":"0 €"}}]
[null,"Άλλο",null,null,{"$f":"Φαγητό[[#This Row],[Προβλεπόμενα έξοδα]]-Φαγητό[[#This Row],[Πραγματικά έξοδα]]","v":{"v":0,"d":"0 €"}}]
[null,"Άθροισμα",{"$f":"SUBTOTAL(109,Φαγητό[Προβλεπόμενα έξοδα])","v":{"v":0,"d":"0 €"}},{"$f":"SUBTOTAL(109,Φαγητό[Πραγματικά έξοδα])","v":{"v":0,"d":"0 €"}},{"$f":"SUBTOTAL(109,Φαγητό[Διαφορά])","v":{"v":0,"d":"0 €"}},null,"ΔΩΡΑ ΚΑΙ ΔΩΡΕΕΣ","Προβλεπόμενα έξοδα","Πραγματικά έξοδα","Διαφορά"]
[{"$nulls":6},"Φιλανθρωπική οργάνωση 1",null,null,{"$f":"ΔώραΚαιΔωρέες[[#This Row],[Προβλεπόμενα έξοδα]]-ΔώραΚαιΔωρέες[[#This Row],[Πραγματικά έξοδα]]","v":{"v":0,"d":"0 €"}}]
[null,"ΚΑΤΟΙΚΙΔΙΑ","Προβλεπόμενα έξοδα","Πραγματικά έξοδα","Διαφορά",null,"Φιλανθρωπική οργάνωση 2",null,null,{"$f":"ΔώραΚαιΔωρέες[[#This Row],[Προβλεπόμενα έξοδα]]-ΔώραΚαιΔωρέες[[#This Row],[Πραγματικά έξοδα]]","v":{"v":0,"d":"0 €"}}]
[null,"Φαγητό",null,null,{"$f":"Κατοικίδια[[#This Row],[Προβλεπόμενα έξοδα]]-Κατοικίδια[[#This Row],[Πραγματικά έξοδα]]","v":{"v":0,"d":"0 €"}},null,"Φιλανθρωπική οργάνωση 3",null,null,{"$f":"ΔώραΚαιΔωρέες[[#This Row],[Προβλεπόμενα έξοδα]]-ΔώραΚαιΔωρέες[[#This Row],[Πραγματικά έξοδα]]","v":{"v":0,"d":"0 €"}}]
[null,"Ιατρικά",null,null,{"$f":"Κατοικίδια[[#This Row],[Προβλεπόμενα έξοδα]]-Κατοικίδια[[#This Row],[Πραγματικά έξοδα]]","v":{"v":0,"d":"0 €"}},null,"Άθροισμα",{"$f":"SUBTOTAL(109,ΔώραΚαιΔωρέες[Προβλεπόμενα έξοδα])","v":{"v":0,"d":"0 €"}},{"$f":"SUBTOTAL(109,ΔώραΚαιΔωρέες[Πραγματικά έξοδα])","v":{"v":0,"d":"0 €"}},{"$f":"SUBTOTAL(109,ΔώραΚαιΔωρέες[Διαφορά])","v":{"v":0,"d":"0 €"}}]
[null,"Περιποίηση",null,null,{"$f":"Κατοικίδια[[#This Row],[Προβλεπόμενα έξοδα]]-Κατοικίδια[[#This Row],[Πραγματικά έξοδα]]","v":{"v":0,"d":"0 €"}}]
[null,"Παιχνίδια",null,null,{"$f":"Κατοικίδια[[#This Row],[Προβλεπόμενα έξοδα]]-Κατοικίδια[[#This Row],[Πραγματικά έξοδα]]","v":{"v":0,"d":"0 €"}},null,"ΝΟΜΙΚΑ","Προβλεπόμενα έξοδα","Πραγματικά έξοδα","Διαφορά"]
[null,"Άλλο",null,null,{"$f":"Κατοικίδια[[#This Row],[Προβλεπόμενα έξοδα]]-Κατοικίδια[[#This Row],[Πραγματικά έξοδα]]","v":{"v":0,"d":"0 €"}},null,"Δικηγόρος",null,null,{"$f":"ΝομικέςΥπηρεσίες[[#This Row],[Προβλεπόμενα έξοδα]]-ΝομικέςΥπηρεσίες[[#This Row],[Πραγματικά έξοδα]]","v":{"v":0,"d":"0 €"}}]
[null,"Άθροισμα",{"$f":"SUBTOTAL(109,Κατοικίδια[Προβλεπόμενα έξοδα])","v":{"v":0,"d":"0 €"}},{"$f":"SUBTOTAL(109,Κατοικίδια[Πραγματικά έξοδα])","v":{"v":0,"d":"0 €"}},{"$f":"SUBTOTAL(109,Κατοικίδια[Διαφορά])","v":{"v":0,"d":"0 €"}},null,"Διατροφή",null,null,{"$f":"ΝομικέςΥπηρεσίες[[#This Row],[Προβλεπόμενα έξοδα]]-ΝομικέςΥπηρεσίες[[#This Row],[Πραγματικά έξοδα]]","v":{"v":0,"d":"0 €"}}]
[{"$nulls":6},"Πληρωμές με επίσχεση ή δικαστική απόφαση",null,null,{"$f":"ΝομικέςΥπηρεσίες[[#This Row],[Προβλεπόμενα έξοδα]]-ΝομικέςΥπηρεσίες[[#This Row],[Πραγματικά έξοδα]]","v":{"v":0,"d":"0 €"}}]
[null,"ΠΡΟΣΩΠΙΚΗ ΦΡΟΝΤΙΔΑ","Προβλεπόμενα έξοδα","Πραγματικά έξοδα","Διαφορά",null,"Άλλο",null,null,{"$f":"ΝομικέςΥπηρεσίες[[#This Row],[Προβλεπόμενα έξοδα]]-ΝομικέςΥπηρεσίες[[#This Row],[Πραγματικά έξοδα]]","v":{"v":0,"d":"0 €"}}]
[null,"Ιατρικά",null,null,{"$f":"ΠροσωπικήΦροντίδα[[#This Row],[Προβλεπόμενα έξοδα]]-ΠροσωπικήΦροντίδα[[#This Row],[Πραγματικά έξοδα]]","v":{"v":0,"d":"0 €"}},null,"Άθροισμα",{"$f":"SUBTOTAL(109,ΝομικέςΥπηρεσίες[Προβλεπόμενα έξοδα])","v":{"v":0,"d":"0 €"}},{"$f":"SUBTOTAL(109,ΝομικέςΥπηρεσίες[Πραγματικά έξοδα])","v":{"v":0,"d":"0 €"}},{"$f":"SUBTOTAL(109,ΝομικέςΥπηρεσίες[Διαφορά])","v":{"v":0,"d":"0 €"}}]
[null,"Κομμωτήριο",null,null,{"$f":"ΠροσωπικήΦροντίδα[[#This Row],[Προβλεπόμενα έξοδα]]-ΠροσωπικήΦροντίδα[[#This Row],[Πραγματικά έξοδα]]","v":{"v":0,"d":"0 €"}}]
[null,"Ρούχα",null,null,{"$f":"ΠροσωπικήΦροντίδα[[#This Row],[Προβλεπόμενα έξοδα]]-ΠροσωπικήΦροντίδα[[#This Row],[Πραγματικά έξοδα]]","v":{"v":0,"d":"0 €"}}]
[null,"Στεγνοκαθαριστήριο",null,null,{"$f":"ΠροσωπικήΦροντίδα[[#This Row],[Προβλεπόμενα έξοδα]]-ΠροσωπικήΦροντίδα[[#This Row],[Πραγματικά έξοδα]]","v":{"v":0,"d":"0 €"}}]
[null,"Γυμναστήριο",null,null,{"$f":"ΠροσωπικήΦροντίδα[[#This Row],[Προβλεπόμενα έξοδα]]-ΠροσωπικήΦροντίδα[[#This Row],[Πραγματικά έξοδα]]","v":{"v":0,"d":"0 €"}}]
[null,"Συμμετοχή σε οργανώσεις",null,null,{"$f":"ΠροσωπικήΦροντίδα[[#This Row],[Προβλεπόμενα έξοδα]]-ΠροσωπικήΦροντίδα[[#This Row],[Πραγματικά έξοδα]]","v":{"v":0,"d":"0 €"}}]
[null,"Άλλο",null,null,{"$f":"ΠροσωπικήΦροντίδα[[#This Row],[Προβλεπόμενα έξοδα]]-ΠροσωπικήΦροντίδα[[#This Row],[Πραγματικά έξοδα]]","v":{"v":0,"d":"0 €"}}]
[null,"Άθροισμα",{"$f":"SUBTOTAL(109,ΠροσωπικήΦροντίδα[Προβλεπόμενα έξοδα])","v":{"v":0,"d":"0 €"}},{"$f":"SUBTOTAL(109,ΠροσωπικήΦροντίδα[Πραγματικά έξοδα])","v":{"v":0,"d":"0 €"}},{"$f":"SUBTOTAL(109,ΠροσωπικήΦροντίδα[Διαφορά])","v":{"v":0,"d":"0 €"}}]